Cogmind - Beta 15 @@@ ROGUE MODE // 2025.10.06 @ 06:26:12 Player: odium reigns Result: Destroyed by G-67 Veteran with Plasma Rifle Performance ------------- Evolutions (7) 3500 Regions Visited (13) 2600 Robots Destroyed (202) 1010 Value Destroyed (7514) 7514 Prototype IDs (12) 240 Alien Tech Used (0) 0 Bonus (2247) 2247 TOTAL SCORE: 17111 Bonus ------- High Alert Combat Kills 735 Follower Combat Kills 1476 Entered DSFs 500 Acquired ECA 300 Friendly Fire -764 Cogmind --------- Core Integrity 0/1300 Matter 7/300 Energy 815/820 System Corruption 32% Temperature Cool (16) Movement Walking (140) Location -3/Research Parts ------- > --- POWER (3) -------- Particle Reactor Particle Reactor Particle Reactor > --- PROPULSION (6) --- Heavy Armored Exoskeleton Antigrav Array > --- UTILITY (8) ------ Enhanced Optical Array Long-range Sensor Array Improved Signal Interpreter Advanced Terrain Scan Processor Improved Melee Analysis Suite Advanced Target Analyzer Advanced Target Analyzer Improved Core Shielding (fused) > --- WEAPON (4) ------- Vibroblade Force Lance Force Lance Force Lance > --- INVENTORY (5) ---- Improved Antigrav System Improved Utility Shielding Advanced Hardlight Generator Cooled Phase Gun Cooled Phase Gun Peak State ------------ > --- POWER ------------ Particle Reactor Particle Reactor Particle Reactor > --- PROPULSION ------- Heavy Armored Exoskeleton Antigrav Array > --- UTILITY ---------- Enhanced Optical Array Long-range Sensor Array Improved Signal Interpreter Advanced Terrain Scan Processor Advanced Target Analyzer Advanced Target Analyzer Improved Core Shielding Advanced Hardlight Generator > --- WEAPON ----------- Cooled Phase Gun Force Lance Force Lance Force Lance > --- INVENTORY -------- Micro Antimatter Reactor Improved Antigrav System Improved Utility Shielding Advanced Component Analysis Suite Cooled Phase Gun [Rating: 149] Favorites ----------- Power Neutrino Core Engine Light Angular Momentum Engine Power Core Neutrino Core Reactor Antimatter Reactor Propulsion Myomer Leg Treads Improved Treads Leg Myomer Leg Wheel Centrium Wheel Hover Unit Improved Antigrav System Flight Unit Improved Cesium-ion Thruster Utility Advanced Targeting Computer Device Advanced Cooling System Storage Large Storage Unit Processor Advanced Targeting Computer Hackware Improved Hacking Suite Protection Improved Core Shielding Weapon Plasma Flamer Energy Gun Spread Laser Energy Cannon Heavy Disruptor Cannon Ballistic Gun Light Assault Rifle Ballistic Cannon Bore Cannon Special Weapon Plasma Flamer Impact Weapon Impact Mace Slashing Weapon Ionic Axe Piercing Weapon Force Lance Build | -11 -10 -9 -8 -8 -7 -6 -6 -5 -5 -4 -4 -4 -3 ------- Run | Yrd Mat Mat Mat Sto Fac Fac Ext Fac DSF Fac Upp Upp Res Slots Evolved 14 | . . 2 2 . 2 2 . 2 . 2 . . 2 Power 2 | . . . . . . . . 1 . . . . 1 Propulsion 4 | . . . 2 . . . . . . 2 . . . Utility 6 | . . . . . 2 2 . 1 . . . . 1 Weapon 2 | . . 2 . . . . . . . . . . . Parts Attached 249 | 5 3 20 11 18 17 4 39 . 17 32 14 2 67 Power 32 | . 2 2 1 2 1 . 5 . 2 6 2 . 9 Engine 9 | . 2 2 1 1 . . 2 . 1 . . . . Core 11 | . . . . 1 1 . 2 . 1 6 . . . Reactor 12 | . . . . . . . 1 . . . 2 . 9 Propulsion 89 | 2 . 6 5 9 6 . 15 . 5 11 3 1 26 Treads 26 | 2 . 4 5 5 . . 5 . . . . . 5 Leg 29 | . . 2 . 4 1 . 10 . 1 7 3 . 1 Wheel 1 | . . . . . . . . . . . . . 1 Hover 17 | . . . . . 1 . . . 4 4 . . 8 Flight 16 | . . . . . 4 . . . . . . 1 11 Utility 56 | 1 1 4 . 2 7 1 10 . 5 4 3 1 17 Device 24 | . . 4 . 1 2 . 2 . 4 2 2 . 7 Storage 5 | 1 1 . . . . . 2 . . 1 . . . Processor 15 | . . . . . 4 . 1 . 1 1 . . 8 Hackware 8 | . . . . 1 1 1 3 . . . . 1 1 Protection 4 | . . . . . . . 2 . . . 1 . 1 Artifact . | . . . . . . . . . . . . . . Weapon 72 | 2 . 8 5 5 3 3 9 . 5 11 6 . 15 Energy Gun 24 | . . 4 3 2 2 1 1 . 4 3 1 . 3 Energy Cannon 5 | . . . 1 . . 1 . . 1 1 . . 1 Ballistic Gun 22 | 2 . 4 1 3 . 1 2 . . 3 1 . 5 Ballistic Cannon 7 | . . . . . . . 4 . . 3 . . . Launcher . | . . . . . . . . . . . . . . Special Weapon 5 | . . . . . . . . . . . 4 . 1 Impact Weapon 1 | . . . . . 1 . . . . . . . . Slashing Weapon 4 | . . . . . . . 2 . . 1 . . 1 Piercing Weapon 4 | . . . . . . . . . . . . . 4 Special Melee Weapon . | . . . . . . . . . . . . . . Unidentified Prototypes 12 | . . . 2 . 3 1 1 . . 2 . . 3 Corrupted Parts 5 | . . . . . . . 4 . . . . . 1 System Corruption 23 | . . . . . . . 20 . . . . . 3 Parts Lost 101 | . . 3 . 11 8 1 11 . 4 4 6 1 52 Power 12 | . . . . 1 1 . 2 . 1 1 . . 6 Propulsion 41 | . . 2 . 5 3 . 5 . . 1 2 . 23 Utility 18 | . . . . . 1 . 4 . 1 . 1 . 11 Weapon 30 | . . 1 . 5 3 1 . . 2 2 3 1 12 Highest Loss Streak 40 | . . 2 . 4 8 1 8 . 4 3 4 1 40 To Critical Strikes . | . . . . . . . . . . . . . . Average Backups 10 | 2 8 13 14 14 6 4 9 10 9 11 13 13 6 Power . | . 1 1 . . . . . . . . . 1 . Propulsion 1 | 1 2 4 3 . . . . 2 1 1 . . 1 Utility 7 | . 3 6 9 13 6 3 7 7 6 7 8 8 3 Weapon 1 | . 1 1 2 . . 1 1 1 1 2 2 1 . Tool/Special . | . . . . . . . . . . . . . . Unused Backups 51 | . . 4 7 4 8 . 8 . 4 3 1 . 12 Power 3 | . . . . 1 . . 2 . . . . . . Propulsion 8 | . . 2 . . 1 . 1 . 1 1 . . 2 Utility 30 | . . 2 4 3 7 . 4 . 3 2 . . 5 Weapon 10 | . . . 3 . . . 1 . . . 1 . 5 Tool/Special . | . . . . . . . . . . . . . . Average Slot Usage (%) 88 | . 96 98 99 89 79 92 83 88 91 96 91 91 75 Engine 2 | . 11 11 9 3 1 . 1 . 2 1 . . . Core 3 | . . . . 5 2 6 2 . . 8 6 5 . Reactor 2 | . . . . . . . . 5 . . 3 4 8 Treads 8 | . 28 13 35 27 . . 9 . . . . . 5 Leg 9 | . . 7 . 3 6 . 6 23 13 17 26 21 5 Hover 2 | . . . . . 2 . . . 9 13 . . 1 Flight 3 | . . . . . 18 26 6 . . . . 4 2 Device 5 | . . 10 9 2 6 6 . . 4 10 6 5 6 Storage 6 | . 27 11 9 9 1 . 7 11 10 5 5 5 1 Processor 13 | . . . . . 12 13 13 11 14 19 21 21 22 Hackware 5 | . . . . 6 7 19 14 11 7 . . 3 . Energy Gun 5 | . . 20 13 12 7 12 . 5 14 4 . 5 1 Ballistic Gun 6 | . 28 22 19 17 3 4 2 . . 2 3 . . Ballistic Cannon 3 | . . . . . . . 8 17 5 7 5 5 . Special Weapon 1 | . . . . . . . . . . . 9 9 . Piercing Weapon 1 | . . . . . . . . . . . . . 7 Peak Build Rating 149 | 5 8 17 30 31 44 52 75 75 102 119 117 98 149 Average Rating 67 | 4 7 12 25 25 35 50 54 75 85 114 101 95 108 On Entrance 51 | . 5 8 17 30 22 43 52 75 75 102 104 91 93 Naked Turns . | . . . . . . . . . . . . . . Heaviest Build 101 | 7 32 36 46 42 31 20 59 56 63 85 80 72 101 Greatest Support 150 | 40 40 46 92 92 52 20 110 68 68 150 150 95 138 Greatest Overweight (x) 13 | . . 1 . . 1 . 4 . 2 1 . . 13 Average Overweight (x) . | . . . . . . . . . . . . . . Largest Inventory Capacity 15 | 8 15 15 15 15 15 5 10 10 10 15 15 15 15 Average Capacity 11 | 7 14 15 15 15 7 5 9 10 10 12 15 15 7 Most Carried 15 | 5 13 15 15 15 15 5 10 10 10 15 15 15 14 Average Carried 10 | 2 8 13 14 14 6 4 9 10 9 11 13 13 6 Final Capacity 15 | 8 15 15 15 15 5 5 10 10 10 15 15 15 5 Final Carried 15 | 5 13 15 15 15 5 5 10 10 10 15 13 15 5 Class Distribution -------------------- 27% | Gunner 23% | Scavenger-Gunner 9% | Hacker-Mutant 8% | Mutant 5% | Hacker-Sprinter 5% | Pyromaniac-Gunner 4% | Scavenger-Mutant 4% | Skirmisher Dominant Class ---------------- Mutant | -10/Materials Gunner | -9/Materials Gunner | -8/Materials Scavenger-Gunner | -8/Storage Sprinter | -7/Factory Hacker-Sprinter | -6/Factory Hacker-Mutant | -6/Extension Hacker-Mutant | -5/Factory Gunner | -5/DSF Gunner | -4/Factory Pyromaniac-Gunner | -4/Upper Caves Scavenger-Gunner | -4/Upper Caves Mutant | -3/Research Resources | -11 -10 -9 -8 -8 -7 -6 -6 -5 -5 -4 -4 -4 -3 ----------- Run | Yrd Mat Mat Mat Sto Fac Fac Ext Fac DSF Fac Upp Upp Res Matter Collected 6522 | 225 287 784 379 531 204 . 1317 . 339 1303 644 50 459 Remotely 311 | . . . . . . . . . . . 311 . . Salvage Created 9262 | . 253 811 836 1461 204 . 2413 . 377 1699 502 . 706 Parts 416 | . 17 39 52 87 4 . 60 . 13 69 21 . 54 Haulers Intercepted 13 | . . . . 4 . . 6 . . 3 . . . Recyclers Shooed 7 | . 1 2 2 . . . 1 . . 1 . . . Parts Field Recycled . | . . . . . . . . . . . . . . Retrieved Matter . | . . . . . . . . . . . . . . Parts Self-Destructed 24 | . . . . . . . . . . . 24 . . Prevented . | . . . . . . . . . . . . . . Kills | -11 -10 -9 -8 -8 -7 -6 -6 -5 -5 -4 -4 -4 -3 ------- Run | Yrd Mat Mat Mat Sto Fac Fac Ext Fac DSF Fac Upp Upp Res Combat Hostiles Destroyed 148 | . 8 15 16 27 3 . 16 . 8 30 12 . 13 Melee 9 | . . . . . 3 . 3 . . . . . 3 Guns 89 | . 8 15 12 24 . . 1 . 4 16 3 . 6 Cannons 40 | . . . 2 . . . 9 . 4 12 9 . 4 AOE 6 | . . . 2 3 . . . . . 1 . . . Classes Destroyed 17 | . 2 4 4 2 . . 2 . 2 1 . . . Worker 9 | . . . 3 2 . . . . . 4 . . . Builder 4 | . . . . 2 . . 1 . . 1 . . . Hauler 13 | . . . . 4 . . 6 . . 3 . . . Recycler 14 | . . 3 1 . 1 . 7 . . 2 . . . Mechanic 2 | . . . 1 1 . . . . . . . . . Operator 3 | . . . 1 . 1 . . . . 1 . . . Watcher 7 | . . 2 2 . . . 1 . . 2 . . . Swarmer 40 | . 3 . 4 4 1 . . . 4 14 4 . 6 Saboteur 1 | . . . . . . . 1 . . . . . . Grunt 53 | . 5 9 5 15 2 . 9 . 2 2 4 . . Brawler 3 | . . 1 . 1 . . . . . . 1 . . Protector 1 | . . . . . . . 1 . . . . . . Sentry 27 | . . 5 6 7 . . 3 . . 4 1 . 1 Specialist 1 | . . . . . . . . . 1 . . . . Hunter 4 | . . . 1 . . . 1 . . 2 . . . Programmer 16 | . . . . . . . . . . 8 2 . 6 Heavy 1 | . . . . . . . . . 1 . . . . Thug 1 | . . . . . . . 1 . . . . . . Savage 1 | . . . . . . . . . . . 1 . . Guerrilla 1 | . . . . . . . 1 . . . . . . Best Kill Streak 13 | . 4 6 7 7 2 . 5 . 4 13 4 . 4 Combat Bots Only 7 | . 4 6 4 5 2 . 5 . 4 7 4 . 4 Max Kills in Single Turn 4 | . 1 1 3 3 1 . 4 . 3 3 2 . 1 Gunslinging 1 | . . . . 1 . . . . 1 . . . . Exploded 3 | . . . 1 3 . . . . . 1 . . . Melee 1 | . . . . . 1 . 1 . . . . . 1 Uniques/NPCs Destroyed . | . . . . . . . . . . . . . . Combat | -11 -10 -9 -8 -8 -7 -6 -6 -5 -5 -4 -4 -4 -3 -------- Run | Yrd Mat Mat Mat Sto Fac Fac Ext Fac DSF Fac Upp Upp Res Hostile Shots Fired 1507 | . 56 77 61 186 56 14 317 . 34 214 76 11 405 Missed 512 | . 17 12 20 54 6 4 137 . 9 74 22 4 153 Hits 995 | . 39 65 41 132 50 10 180 . 25 140 54 7 252 Melee 14 | . . . . 2 12 . . . . . . . . Projectile 981 | . 39 65 41 130 38 10 180 . 25 140 54 7 252 AOE 1 | . . . . 1 . . . . . . . . . Critical Strikes 49 | . . 1 2 6 4 1 . . 2 10 2 . 21 Actively Blocked 2 | . . . . . . . . . . . . . 2 Part Disruptions 2 | . . . . . . . . . . . . . 2 Damage Taken 17990 | . 421 926 590 2055 1032 169 2492 . 978 2513 1006 132 5676 Core 3786 | . 73 270 68 322 435 . 635 . 244 226 144 60 1309 Absorbed by Shields 635 | . . . . . . . 485 . . . . . 150 Redirected to Shielding 18 | . . . . . . . . . . . . . 18 Regen/Repaired (Parts) 411 | . . 97 . . 15 . 299 . . . . . . Core Remaining (%) 53 | 100 70 32 . 29 37 . 25 . 75 . . 62 . Volleys Fired 406 | . 37 48 40 67 12 3 30 . 18 88 26 . 37 Largest 4 | . 2 4 4 4 3 3 4 . 4 4 4 . 3 Hottest 352 | . 40 218 174 171 110 168 219 . 352 352 300 . 216 Shots Fired 1205 | . 74 182 138 211 22 8 95 . 66 259 87 1 62 Gun 879 | . 74 182 119 211 22 8 24 . 18 142 30 . 49 Cannon 293 | . . . 19 . . . 71 . 48 117 24 1 13 Launcher . | . . . . . . . . . . . . . . Special 33 | . . . . . . . . . . . 33 . . Kinetic 730 | . 74 108 70 120 8 2 90 . 36 134 54 1 33 Thermal 403 | . . 74 45 83 9 3 5 . 30 107 33 . 14 Explosive . | . . . . . . . . . . . . . . Electromagnetic 72 | . . . 23 8 5 3 . . . 18 . . 15 Robot Hit Streak 21 | . 11 12 16 12 5 . 11 . 6 21 16 17 11 Robot Miss Streak 10 | . 5 6 10 5 3 . 6 . 5 4 2 . 3 Penetration Max 1 | . . . . . . . 1 . . 1 1 . . Secondary Targets 22 | . 1 5 2 9 . . . . 1 2 . . 2 Max Gunslinging Chain 2 | . 1 1 1 2 . . . . 1 1 . . 1 Shots Hit Robots 753 | . 48 121 83 110 21 . 73 . 43 152 55 1 46 Core Hits 384 | . 22 69 55 61 8 . 29 . 27 59 28 . 26 Critical Kills 23 | . . . . . . . 14 . 3 2 3 . 1 Critical Parts Destroyed 30 | . 2 1 1 1 1 . 19 . 1 1 1 . 2 Critical Strikes 90 | . 2 1 2 7 1 . 33 . 4 17 16 . 7 Burn 16 | . . . 1 6 . . . . . 4 4 . 1 Destroy 46 | . 2 1 1 1 . . 26 . 4 3 5 . 3 Blast 17 | . . . . . . . . . . 9 7 . 1 Corrupt 2 | . . . . . . . . . . 1 . . 1 Smash 8 | . . . . . 1 . 7 . . . . . . Impale 1 | . . . . . . . . . . . . . 1 Melee Attacks 73 | . . . . . 6 1 47 . . . . . 19 Impact 51 | . . . . . 6 1 44 . . . . . . Slashing 4 | . . . . . . . 3 . . . . . 1 Piercing 18 | . . . . . . . . . . . . . 18 Sneak Attacks 9 | . . . . . 1 . 8 . . . . . . Combat Hostiles . | . . . . . . . . . . . . . . Follow-up Attacks 3 | . . . . . . . . . . . . . 3 Damage Inflicted 19318 | . 408 1261 2059 2156 632 . 3182 . 1144 5800 1222 32 1422 Guns 9272 | . 408 1249 1134 1899 222 . 351 . 304 2582 365 . 758 Cannons 5912 | . . . 431 . . . 905 . 840 2841 594 32 269 Explosions 1120 | . . . 486 257 . . . . . 377 . . . Melee 2726 | . . . . . 410 . 1922 . . . . . 394 Ramming 25 | . . 12 8 . . . 4 . . . . . 1 Kinetic 8606 | . 408 505 565 898 76 . 1192 . 615 2859 959 32 497 Thermal 5936 | . . 744 648 921 96 . 64 . 529 2432 263 . 239 Explosive 620 | . . . 363 257 . . . . . . . . . Electromagnetic 1405 | . . . 475 80 50 . . . . 509 . . 291 Impact 2332 | . . . . . 410 . 1922 . . . . . . Slashing . | . . . . . . . . . . . . . . Piercing 394 | . . . . . . . . . . . . . 394 Highest Corruption 32 | . . . 2 4 1 . 22 . . 5 6 6 32 Average Corruption 11 | . . . 2 2 1 . 18 . . 2 5 6 25 Corruption Purged . | . . . . . . . . . . . . . . Corruption Blocked . | . . . . . . . . . . . . . . Effects 213 | . . . 5 10 2 . 90 . . 14 23 11 58 Message Errors 39 | . . . 3 . . . 20 . . 1 5 2 8 Matter Fused 52 | . . . . 3 2 . 23 . . 5 8 2 9 Heat Flow Errors 39 | . . . . 3 . . 17 . . . 3 2 14 Energy Discharges 28 | . . . 2 2 . . 9 . . 4 3 3 5 Parts Rejected 2 | . . . . . . . . . . . . 1 1 Parts Fused 4 | . . . . . . . 2 . . . 1 . 1 Data Loss (minor) 19 | . . . . . . . 7 . . 2 1 . 9 Data Loss (major) 11 | . . . . . . . 4 . . . . . 7 Misfires 7 | . . . . 1 . . 4 . . . 1 1 . Alerts 3 | . . . . 1 . . 2 . . . . . . Misdirections 4 | . . . . . . . . . . . . . 4 Weapon Failures 5 | . . . . . . . 2 . . 2 1 . . Overload Shots . | . . . . . . . . . . . . . . Overflow Damage 1395 | . . . 46 23 151 . 869 . 4 225 . . 77 Projectiles 214 | . . . 20 . 19 . 38 . 4 126 . . 7 Explosions 148 | . . . 26 23 . . . . . 99 . . . Melee 1033 | . . . . . 132 . 831 . . . . . 70 Knockbacks 34 | . . . . . 2 . 15 . 1 13 3 . . Impact 8 | . . . . . 1 . 7 . . . . . . Kinetic 24 | . . . . . . . 7 . 1 13 3 . . Secondary 2 | . . . . . 1 . 1 . . . . . . Self-Inflicted Damage 111 | . . . . 76 . . . . . 35 . . . Shots 3 | . . . . 2 . . . . . 1 . . . Rammed 3 | . . . 2 . . . . . . . . . 1 Targets Rammed 7 | . . 2 2 . . . 2 . . . . . 1 Kicked 4 | . . 2 . . . . 2 . . . . . . Crushed . | . . . . . . . . . . . . . . Highest Temperature 725 | . 18 725 298 484 102 218 481 . 198 333 179 229 297 Average Temperature 118 | . 7 209 86 137 36 113 116 . 69 101 66 104 97 Received Heat Transfer 3631 | . 150 435 153 1044 234 45 657 . 99 138 153 9 514 Effects 41 | . . 17 5 14 . 1 3 . . 1 . . . Shutdowns 7 | . . 3 . 3 . . 1 . . . . . . Energy Bleed 6 | . . 3 . 1 . 1 1 . . . . . . Interference 12 | . . 4 5 3 . . . . . . . . . Matter Decay 8 | . . 4 . 2 . . 1 . . 1 . . . Short Circuit 1 | . . . . 1 . . . . . . . . . Damage (minor) 3 | . . 2 . 1 . . . . . . . . . Damage (major) 3 | . . . . 3 . . . . . . . . . Damage (core) 1 | . . 1 . . . . . . . . . . . Siege Activations . | . . . . . . . . . . . . . . Martial Activations . | . . . . . . . . . . . . . . Shielding Activations . | . . . . . . . . . . . . . . Robots Disrupted 2 | . . . . . . . . . . 1 1 . . Combat Hostiles 2 | . . . . . . . . . . 1 1 . . Robots Corrupted 14 | . . . . . 2 . 11 . . 1 . . . Combat Hostiles 3 | . . . . . . . 3 . . . . . . Parts Fried 29 | . . . 1 . 3 . 21 . . 2 . . 2 Impact Corruptions 33 | . . . . . 6 . 27 . . . . . . Robots Melted 2 | . . . . . . . . . 1 1 . . . Combat Hostiles 1 | . . . . . . . . . . 1 . . . Parts Melted 15 | . . 2 . 1 . . . . 3 6 1 . 2 Heat Transferred 11917 | . . 1360 1117 2294 222 . 125 . 935 3297 2160 . 407 Parts Sabotaged . | . . . . . . . . . . . . . . Parts Stolen . | . . . . . . . . . . . . . . Parts Stripped . | . . . . . . . . . . . . . . Power Chain Reactions 4 | . . . 2 1 . . . . . 1 . . . Alert | -11 -10 -9 -8 -8 -7 -6 -6 -5 -5 -4 -4 -4 -3 ------- Run | Yrd Mat Mat Mat Sto Fac Fac Ext Fac DSF Fac Upp Upp Res Maximum Alert Level 4 | . . . 1 2 1 . 4 2 2 3 . . . Low Security (%) 59 | 100 100 100 74 10 85 100 52 . . . . . 100 Level 1 13 | . . . 25 39 14 . 1 . . 45 . . . Level 2 17 | . . . . 50 . . 30 100 100 21 . . . Level 3 6 | . . . . . . . 3 . . 32 . . . Level 4 2 | . . . . . . . 11 . . . . . . Level 5 . | . . . . . . . . . . . . . . High Security . | . . . . . . . . . . . . . . Max Security . | . . . . . . . . . . . . . . Sterilizations 1 | . . . . . . . . . 1 . . . . Peak Influence 1368 | . 180 177 258 536 233 105 1368 667 614 945 . . 121 Initial 667 | . . 61 57 102 233 11 46 667 466 322 . . 40 Average 243 | . 73 83 97 391 98 2 357 667 551 502 . . 27 Influence Increases 6688 | . 295 464 508 824 125 106 2065 . 208 1189 280 . 624 Destroy 0b10 Robot/C 3760 | . 160 300 320 540 60 . 1120 . 160 600 240 . 260 Destroy 0b10 Robot/NC 285 | . . 25 40 45 10 . 90 . 10 65 . . . Destroy Leader 770 | . 30 94 104 128 10 . 144 . 20 140 40 . 60 Allied During Kill 522 | . . . . . . . 521 . 1 . . . . Successful Hack 101 | . 30 . 7 24 . . 24 . . 16 . . . Disable Machine 285 | . . . 15 60 15 . 30 . . 150 . . 15 Destroy Structure 215 | . . . 22 27 . 1 31 . 2 128 . . 4 Partial Spotted 30 | . . . . . . . 30 . . . . . . Lose Combat Pursuer 720 | . 75 45 . . 30 105 75 . 15 90 . . 285 Influence Decreases 6658 | . 150 473 402 552 615 33 798 697 261 858 901 263 655 Entered New Map 2273 | . . 84 79 140 281 13 51 697 201 292 351 63 21 Time Decay 3454 | . 150 359 323 302 254 19 535 . . 526 490 190 306 Lost Part 775 | . . 30 . 110 80 1 76 . 40 40 60 10 328 Lost Ally 156 | . . . . . . . 136 . 20 . . . . Squads Dispatched 37 | . 1 1 2 4 2 2 7 . 1 8 . . 9 Investigation 7 | . . . . 2 1 1 2 . . . . . 1 Extermination 10 | . . . . . 1 1 . . . 3 . . 5 Reinforcement 10 | . 1 1 1 2 . . 2 . 1 2 . . . Assault 3 | . . . . . . . 3 . . . . . . Garrison 7 | . . . 1 . . . . . . 3 . . 3 Intercept . | . . . . . . . . . . . . . . Searches Triggered . | . . . . . . . . . . . . . . Construction Impeded 2 | . . . . . . . 2 . . . . . . Haulers Reinforced 1 | . . . . . . . . . . 1 . . . Active Scanning Responses . | . . . . . . . . . . . . . . Cargo Convoy Interrupts . | . . . . . . . . . . . . . . Stealth | -11 -10 -9 -8 -8 -7 -6 -6 -5 -5 -4 -4 -4 -3 --------- Run | Yrd Mat Mat Mat Sto Fac Fac Ext Fac DSF Fac Upp Upp Res Distress Signals 20 | . 1 1 4 5 1 . 3 . . 2 . . 3 Communications Jammed . | . . . . . . . . . . . . . . Distress Signals . | . . . . . . . . . . . . . . Times Spotted 279 | . 12 21 23 34 9 8 55 . 9 49 13 1 45 Peak Tracking Total 10 | . 5 6 5 8 3 8 10 . 3 7 4 1 9 Tactical Retreats 28 | . 4 2 . . 1 1 5 . 1 4 . . 10 Traps | -11 -10 -9 -8 -8 -7 -6 -6 -5 -5 -4 -4 -4 -3 ------- Run | Yrd Mat Mat Mat Sto Fac Fac Ext Fac DSF Fac Upp Upp Res Traps Triggered 11 | . . . 1 2 3 . 1 . 2 1 . . 1 Indirectly . | . . . . . . . . . . . . . . Trap Hack Attempts . | . . . . . . . . . . . . . . Triggered . | . . . . . . . . . . . . . . Disarmed . | . . . . . . . . . . . . . . Reprogrammed . | . . . . . . . . . . . . . . Reused . | . . . . . . . . . . . . . . Traps Extracted . | . . . . . . . . . . . . . . Installed . | . . . . . . . . . . . . . . Triggered . | . . . . . . . . . . . . . . Machines | -11 -10 -9 -8 -8 -7 -6 -6 -5 -5 -4 -4 -4 -3 ---------- Run | Yrd Mat Mat Mat Sto Fac Fac Ext Fac DSF Fac Upp Upp Res Machines Disabled 22 | . . . 1 4 1 . 5 . . 10 . . 1 Max in Single Turn 2 | . . . 1 2 1 . 1 . . 2 . . 1 Machines Repaired . | . . . . . . . . . . . . . . Machines Dismantled . | . . . . . . . . . . . . . . Machines Sabotaged . | . . . . . . . . . . . . . . Overloaded Fab Kills . | . . . . . . . . . . . . . . Hacking | -11 -10 -9 -8 -8 -7 -6 -6 -5 -5 -4 -4 -4 -3 --------- Run | Yrd Mat Mat Mat Sto Fac Fac Ext Fac DSF Fac Upp Upp Res Machines Accessed 42 | . 1 3 1 4 4 3 17 1 . 6 1 . 1 Terminals 29 | . 1 2 1 3 . 2 15 1 . 4 . . . Fabricators 4 | . . . . . 3 1 . . . . . . . Repair Stations 4 | . . 1 . 1 1 . 1 . . . . . . Recycling Units 3 | . . . . . . . 1 . . 2 . . . Scanalyzers . | . . . . . . . . . . . . . . Garrison Access 1 | . . . . . . . . . . . . . 1 Total Hacks 108 | . 3 5 4 12 9 5 49 5 . 13 1 . 2 Successful 53 | . 2 2 3 4 6 3 26 1 . 5 1 . . Failed 55 | . 1 3 1 8 3 2 23 4 . 8 . . 2 Catastrophic 13 | . 1 2 1 . . . 6 . . 2 . . 1 Database Lockouts . | . . . . . . . . . . . . . . Manual . | . . . . . . . . . . . . . . Terminals 65 | . 3 3 4 9 . 3 30 5 . 8 . . . Fabricators 8 | . . . . . 6 2 . . . . . . . Repair Stations 25 | . . 2 . 3 3 . 17 . . . . . . Recycling Units 7 | . . . . . . . 2 . . 5 . . . Scanalyzers . | . . . . . . . . . . . . . . Garrison Access 2 | . . . . . . . . . . . . . 2 Terminal Hacks 22 | . 2 . 3 3 . 1 9 1 . 2 1 . . Record 1 | . . . . . . . 1 . . . . . . Part Schematic 1 | . . . . 1 . . . . . . . . . Robot Analysis 1 | . . . . . . . 1 . . . . . . Open Door 8 | . . . . . . 1 6 . . . 1 . . Open DSF 2 | . . . . . . . . 1 . 1 . . . Branch Access Points 2 | . . . . 1 . . . . . 1 . . . Scanalyzer Index 1 | . 1 . . . . . . . . . . . . Dispatch Records 1 | . . . 1 . . . . . . . . . . Hauler Manifests 2 | . . . 1 1 . . . . . . . . . Registered Components 1 | . . . 1 . . . . . . . . . . Zone Layout 2 | . 1 . . . . . 1 . . . . . . Fabricator Hacks 6 | . . . . . 4 2 . . . . . . . Load Schematic 4 | . . . . . 3 1 . . . . . . . Build 2 | . . . . . 1 1 . . . . . . . Repair Station Hacks 21 | . . 2 . 1 2 . 16 . . . . . . Scan Component 11 | . . 1 . 1 1 . 8 . . . . . . Repair 10 | . . 1 . . 1 . 8 . . . . . . Recycling Unit Hacks 4 | . . . . . . . 1 . . 3 . . . Report Inventory 2 | . . . . . . . 1 . . 1 . . . Retrieve Components 2 | . . . . . . . . . . 2 . . . Scanalyzer . | . . . . . . . . . . . . . . Garrison Access Hacks . | . . . . . . . . . . . . . . Unauthorized Hacks . | . . . . . . . . . . . . . . Terminals . | . . . . . . . . . . . . . . Fabricators . | . . . . . . . . . . . . . . Repair Stations . | . . . . . . . . . . . . . . Recycling Units . | . . . . . . . . . . . . . . Scanalyzers . | . . . . . . . . . . . . . . Garrison Access . | . . . . . . . . . . . . . . Data Cores Recovered 2 | . . . . . 1 . . . . 1 . . . Used . | . . . . . . . . . . . . . . Hacking Detections 32 | . 1 3 1 4 4 2 10 1 . 5 . . 1 Full Trace Events 9 | . 1 . . 3 1 1 2 . . . . . 1 Feedback Events . | . . . . . . . . . . . . . . Feedback Blocked . | . . . . . . . . . . . . . . Robot Schematics Acquired . | . . . . . . . . . . . . . . Robots Built . | . . . . . . . . . . . . . . Authchips . | . . . . . . . . . . . . . . Time . | . . . . . . . . . . . . . . Total Robot Build Rating . | . . . . . . . . . . . . . . Part Schematics Acquired 1 | . . . . 1 . . . . . . . . . Parts Built 2 | . . . . . 1 1 . . . . . . . Authchips . | . . . . . . . . . . . . . . Time 190 | . . . . . 95 95 . . . . . . . Total Part Build Rating 10 | . . . . . 5 5 . . . . . . . Parts Repaired 10 | . . 1 . . 1 . 8 . . . . . . Time 556 | . . 32 . . 70 . 454 . . . . . . Parts Recycled . | . . . . . . . . . . . . . . Recycled Matter . | . . . . . . . . . . . . . . Retrieved Matter . | . . . . . . . . . . . . . . Retrieved Components 10 | . . . . . . . . . . 10 . . . Parts Scanalyzed . | . . . . . . . . . . . . . . Part Schematics Acquired . | . . . . . . . . . . . . . . Parts Damaged . | . . . . . . . . . . . . . . Bothacking | -11 -10 -9 -8 -8 -7 -6 -6 -5 -5 -4 -4 -4 -3 ------------ Run | Yrd Mat Mat Mat Sto Fac Fac Ext Fac DSF Fac Upp Upp Res Used RIF Installer . | . . . . . . . . . . . . . . Robots Hacked . | . . . . . . . . . . . . . . Non-combat . | . . . . . . . . . . . . . . Combat . | . . . . . . . . . . . . . . Robot Hacks Applied . | . . . . . . . . . . . . . . Relay Couplers Released . | . . . . . . . . . . . . . . Fabnet Peak Effective % . | . . . . . . . . . . . . . . Robots Rewired 5 | . . . . . . . 5 . . . . . . Allies Hacked . | . . . . . . . . . . . . . . Hacks Repelled . | . . . . . . . . . . . . . . Allies | -11 -10 -9 -8 -8 -7 -6 -6 -5 -5 -4 -4 -4 -3 -------- Run | Yrd Mat Mat Mat Sto Fac Fac Ext Fac DSF Fac Upp Upp Res Total Allies 12 | . . . . . . . 12 . . . . . . Largest Group 8 | . . . . . . . 8 1 1 . . . . Highest-Rated Group 375 | . . . . . . . 375 39 39 . . . . Highest-Rated Ally 159 | . . . . . . . 159 39 39 . . . . Initial Warlord ECA Mod 35 | . . . . . . . . . . 9 9 9 8 Total Orders . | . . . . . . . . . . . . . . Ally Attacks 232 | . . . . . . . 225 . 7 . . . . Total Damage 5120 | . . . . . . . 5011 . 109 . . . . Kills 44 | . . . . . . . 44 . . . . . . Allies Corrupted . | . . . . . . . . . . . . . . Allies Melted . | . . . . . . . . . . . . . . Intel | -11 -10 -9 -8 -8 -7 -6 -6 -5 -5 -4 -4 -4 -3 ------- Run | Yrd Mat Mat Mat Sto Fac Fac Ext Fac DSF Fac Upp Upp Res Active Infowar (turns) 5577 | . . 108 . . 31 443 306 . . 1463 1296 384 1546 Optics 4435 | . . . . . . . . . . 1209 1296 384 1546 Sensors 2290 | . . 108 . . 31 443 306 . . 670 . . 732 Robot Analysis Total 1 | . . . . . . . 1 . . . . . . Derelict Logs Recovered 1 | . . . . . . . . . . . 1 . . Drone Launches . | . . . . . . . . . . . . . . Drone Recoveries . | . . . . . . . . . . . . . . Exploration | -11 -10 -9 -8 -8 -7 -6 -6 -5 -5 -4 -4 -4 -3 ------------- Run | Yrd Mat Mat Mat Sto Fac Fac Ext Fac DSF Fac Upp Upp Res Turns Passed 11300 | 98 361 869 786 679 558 443 2500 10 297 1473 1296 384 1546 Spaces Moved 6801 | 59 153 353 366 255 723 453 1160 9 152 952 927 315 924 Core 56 | 7 . . . . . . 4 . . . . . 45 Treads 1641 | 52 153 242 366 224 . . 485 . . . . . 119 Legs 2699 | . . 111 . 31 85 . 243 9 61 457 927 315 460 Wheels 2 | . . . . . . . . . . . . . 2 Hover 608 | . . . . . . . . . 91 495 . . 22 Flight 1795 | . . . . . 638 453 428 . . . . . 276 Fastest Speed 26 | 50 160 160 160 120 26 26 26 120 108 40 120 120 28 Average Speed 109 | 146 160 169 160 155 40 26 121 120 112 92 120 120 123 Slowest Speed 700 | 160 160 240 160 160 120 26 330 120 196 190 120 120 700 Overloaded Moves . | . . . . . . . . . . . . . . Propulsion Burnouts . | . . . . . . . . . . . . . . Robots Hopped 9 | . . . . . 2 2 4 . . . . . 1 Potential Cave-ins . | . . . . . . . . . . . . . . Cave-ins Triggered . | . . . . . . . . . . . . . . Exploration Rate (%) 38 | 4 30 24 30 52 19 11 85 1 93 22 96 43 22 Regions Visited 13 Branch Regions 4 Pre-discovered Areas 2 | . . . . . . . . . . . 2 . . Known Exits Taken 7 | . . . . . 1 1 1 1 . 1 1 1 . Unknown Exits Taken 5 | 1 1 1 1 1 . . . . . . . . . Scrap Searched 7 | . . . . . . . . . . . 5 2 . Spaces Dug 11 | . . . . . . 1 1 . . 9 . . . Terrain Destroyed 148 | . . . 20 21 . 1 24 . 1 65 14 . 2 Melee 2 | . . . . . . 1 1 . . . . . . Projectile 84 | . . . . 1 . . 23 . 1 43 14 . 2 AOE 62 | . . . 20 20 . . . . . 22 . . . Terrain Rammed . | . . . . . . . . . . . . . . Walls Destroyed . | . . . . . . . . . . . . . . Machines Disabled . | . . . . . . . . . . . . . . Actions | -11 -10 -9 -8 -8 -7 -6 -6 -5 -5 -4 -4 -4 -3 --------- Run | Yrd Mat Mat Mat Sto Fac Fac Ext Fac DSF Fac Upp Upp Res Total 9688 | 68 209 532 476 388 959 767 2108 8 234 1356 1033 320 1230 Wait 1710 | . 9 73 29 27 161 299 690 . 11 231 50 . 130 Move 6772 | 58 152 352 365 254 718 448 1153 8 151 951 926 314 922 Hop 7 | . . . . . 2 2 2 . . . . . 1 Pick Up 136 | 5 8 15 12 9 6 2 28 . 9 17 6 3 16 Fast Attach 168 | 5 1 8 5 12 13 4 28 . 11 22 5 2 52 Attach 60 | . 1 5 2 2 6 3 7 . 3 4 6 1 20 Detach 12 | . . . . . . 2 3 . . 1 1 . 5 Swap 54 | . 1 9 4 5 . . 13 . 3 9 5 . 5 Drop 185 | . . 20 17 12 17 3 38 . 15 33 8 . 22 Fire 406 | . 37 48 40 67 12 3 30 . 18 88 26 . 37 Melee 65 | . . . . . 6 1 44 . . . . . 14 Ram 2 | . . . . . . . . . . . . . 2 Kick 4 | . . 2 . . . . 2 . . . . . . Crush 2 | . . . 2 . . . . . . . . . . Escape Stasis 35 | . . . . . 18 . 1 . 13 . . . 3 Rewire 69 | . . . . . . . 69 . . . . . . Trap . | . . . . . . . . . . . . . . Miscellaneous 1 | . . . . . . . . . . . . . 1 Route ------- -11/Scrapyard -10/Materials -9/Materials -8/Materials -8/Storage (discovered 2 exits: *Fac / Rec) -7/Factory -6/Factory -6/Extension (discovered 3 exits: *Fac x2 / *Cet) -5/Factory -5/DSF -4/Factory (discovered 2 exits: *Upp x2) -4/Upper Caves -4/Upper Caves -3/Research History --------- Turn | Location | Event 16 | -11/Scrapyard | Discovered new exit (range 16) 99 | -11/Scrapyard | Entered Materials 304 | -10/Materials | Build established: Mutant 331 | -10/Materials | Discovered new exit (range 14) 460 | -10/Materials | Entered another Materials area 460 | -9/Materials | Evolved 2 slots: Weapon x2 878 | -9/Materials | Build established: Gunner 1003 | -9/Materials | Core integrity fell below 50% 1252 | -9/Materials | Repaired Imp. Treads 1297 | -9/Materials | Discovered new exit (range 16) 1329 | -9/Materials | Entered another Materials area 1329 | -8/Materials | Evolved 2 slots: Propulsion x2 2071 | -8/Materials | Discovered new exit (range 11) 2072 | -8/Materials | Garrison activated, responded to threat 2115 | -8/Materials | Entered Storage 2171 | -8/Storage | Identified exit to Recycling 2281 | -8/Storage | Lost 4 parts (2n2w) 2466 | -8/Storage | Core integrity fell below 50% 2589 | -8/Storage | Build established: Scavenger-Gunner 2741 | -8/Storage | Discovered new exit (range 16) 2794 | -8/Storage | Entered Factory 2794 | -7/Factory | Evolved 2 slots: Utility x2 2931 | -7/Factory | Core integrity fell below 50% 2954 | -7/Factory | Lost 8 parts (1p3n1u3w) 3129 | -7/Factory | Fabricated Imp. Hacking Suite (x1) 3288 | -7/Factory | Repaired Imp. Cesium-ion Thruster 3350 | -7/Factory | Discovered new exit (range 8) 3352 | -7/Factory | Identified exit to Factory 3352 | -7/Factory | Entered another Factory area 3352 | -6/Factory | Evolved 2 slots: Utility x2 3602 | -6/Factory | Fabricated Imp. Hacking Suite? 3635 | -6/Factory | Build established: Hacker-Sprinter 3794 | -6/Factory | Discovered new exit (range 6) 3795 | -6/Factory | Identified exit to Extension 3795 | -6/Factory | Entered Extension 4008 | -6/Extension | Repaired Neutrino Core 4058 | -6/Extension | Repaired Bore Cannon 4118 | -6/Extension | Repaired Neutrino Core 4189 | -6/Extension | Repaired Impact Mace 4210 | -6/Extension | Build established: Hacker-Mutant 4241 | -6/Extension | Repaired Bore Cannon 4302 | -6/Extension | Rescued a captive Derelict 4328 | -6/Extension | Rescued A7 4336 | -6/Extension | Rescued a captive Derelict 4427 | -6/Extension | Repaired Imp. Cesium-ion Thruster 4461 | -6/Extension | Repaired VTOL Module 4532 | -6/Extension | Repaired Impact Mace 4593 | -6/Extension | Spotted B-75 Beast 4599 | -6/Extension | Spotted B-75 Beast 4612 | -6/Extension | Allies destroyed B-75 Beast 4621 | -6/Extension | System corruption reached 10% 4626 | -6/Extension | Core integrity fell below 50% 4641 | -6/Extension | Allies destroyed B-75 Beast 4666 | -6/Extension | Lost 8 parts (1p4n3u) 4747 | -6/Extension | Discovered new exit (range 3) 4755 | -6/Extension | Identified exit to Factory 5052 | -6/Extension | Rescued a captive Derelict 5053 | -6/Extension | Rescued a captive Derelict 5129 | -6/Extension | Rescued a captive Derelict 5131 | -6/Extension | Rescued a captive Derelict 5545 | -6/Extension | Disrupted transfer network 5559 | -6/Extension | Build established: Scavenger-Gunner 5895 | -6/Extension | First assault squad dispatched 5954 | -6/Extension | Disrupted transfer network 5968 | -6/Extension | Discovered exit to Factory (range 16) 5968 | -6/Extension | Discovered new exit (range 16) 5986 | -6/Extension | Lost 4 allies 5992 | -6/Extension | Identified exit to Cetus 6295 | -6/Extension | Entered Factory 6295 | -5/Factory | Accompanied by 2 allies (A7) 6295 | -5/Factory | Evolved 2 slots: Power x1, Utility x1 6299 | -5/Factory | Identified exit to DSF 6305 | -5/Factory | Entered DSF 6305 | -5/DSF | Accompanied by 1 ally 6327 | -5/DSF | Additional patrols routed to DSF 6405 | -5/DSF | Lost 4 parts (1p1u2w) 6482 | -5/DSF | Sterilization system engaged 6502 | -5/DSF | Ambient heat levels rising (+10) 6517 | -5/DSF | Ambient heat levels rising (+10) 6525 | -5/DSF | Discovered new exit (range 16) 6532 | -5/DSF | Ambient heat levels rising (+10) 6540 | -5/DSF | Identified exit to Factory 6547 | -5/DSF | Ambient heat levels rising (+10) 6562 | -5/DSF | Ambient heat levels rising (+10) 6577 | -5/DSF | Ambient heat levels rising (+10) 6592 | -5/DSF | Ambient heat levels rising (+10) 6602 | -5/DSF | Entered Factory 6602 | -4/Factory | Evolved 2 slots: Propulsion x2 6687 | -4/Factory | Build established: Gunner 7182 | -4/Factory | Build established: Skirmisher 7328 | -4/Factory | Destroyed 7 combat bots 7497 | -4/Factory | Garrison activated, responded to threat 7520 | -4/Factory | Build established: Gunner 7621 | -4/Factory | Lost 3 parts (1p2w) 7799 | -4/Factory | Identified exit to Upper Caves 8075 | -4/Factory | Entered Upper Caves 8093 | -4/Upper Caves | Met a Warlord Commander 8094 | -4/Upper Caves | Learned location of Warlord (-4) 8095 | -4/Upper Caves | Warlord Commander delivered Encrypted Comm Array 8098 | -4/Upper Caves | Found Encrypted Comm Array 8330 | -4/Upper Caves | Found DCF Scrap (13 items) 8476 | -4/Upper Caves | Learned location of Testing (-3) 8519 | -4/Upper Caves | Build established: Scavenger-Gunner 8634 | -4/Upper Caves | Lost 4 parts (1n1u2w) 8915 | -4/Upper Caves | Build established: Pyromaniac-Gunner 9279 | -4/Upper Caves | Discovered new exit (range 19) 9308 | -4/Upper Caves | Identified exit to Upper Caves 9371 | -4/Upper Caves | Entered another Upper Caves area 9372 | -4/Upper Caves | Encountered a Warlord checkpoint 9379 | -4/Upper Caves | Discovered new exit (range 11) 9393 | -4/Upper Caves | Identified exit to Research 9482 | -4/Upper Caves | Build established: Scavenger-Gunner 9708 | -4/Upper Caves | Spotted B-86 Titan 9755 | -4/Upper Caves | Entered Research 9755 | -3/Research | Evolved 2 slots: Power x1, Utility x1 10119 | -3/Research | Lost 9 parts (1p3n3u2w) 10151 | -3/Research | Garrison activated, responded to threat 10176 | -3/Research | System corruption reached 10% 10298 | -3/Research | Found Prototype Device 10298 | -3/Research | Identified Exp. EM Disruption Field 10300 | -3/Research | Core integrity fell below 50% 10347 | -3/Research | Core integrity fell below 20% 10363 | -3/Research | Spotted B-86 Titan 10377 | -3/Research | Lost 40 parts (5p18n8u9w) 10622 | -3/Research | System corruption reached 30% 10655 | -3/Research | Lost 3 parts (2n1w) 11301 | -3/Research | Destroyed by G-67 Veteran with Plasma Rifle Last Messages --------------- 11125_ J#U |ZBYH2FL5HOGF8VN0TV 11146_ System corrupted: Component data lost. 11169_ I=QVHO|3JAUJT:BGK%>T>CTLBNVQ=O:C3S 11184_ System corrupted: Substantial component data lost. 11205_ System corrupted: Matter fused (-8). 11222_ System corrupted: Energy discharge (-311). 11254_ System corrupted: Matter fused (-6). 11266_ Penetrated by Slug. 11266_ Slug penetrates Wall. 11280_ W-44 Eye sends out distress signal. 11285_ System corrupted: Heat flow error (+135). 11289_ Slug penetrates Wall. 11289_ Slug penetrates Wave Intensifier. 11289_ Wave Intensifier disabled. 11290_ ALERT: Potential suspicious activity detected, Programmers report to Research Zone 5R. 11295_ Penetrated by Slug. 11295_ Slug penetrates Wall. 11296_ W-44 Eye sends out distress signal. 11296_ Y-72 Warden destroyed. Map ----- +----------------------------------------------------+ | ?????????????????????????????????????????????????? | | ?????????????????????????????????????????????????? | | ?????????????????????????????????????????????????? | | ?????????????????????????????????????????????????? | | ?????????????????????????????????????????????????? | | ?????????????????????????????????????????????????? | | ?????????????????????????????????????????????????? | | ?????????????????????????????????????????????????? | | ?????????????????????????????????????????????????? | | ?????????????????????????????????????????????????? | | ??????????????????????########## ??????????????? | | ??????????????????????# "" # #????????????? | | ??????????????????????# ""S # #????????????? | | ??????????????????????# "" # #????????????? | | ??????????????????????# /# #????????????? | | ??????????????????????# # #????????????? | | ??????????????????????# = # +????????????? | | ?????????????????????## + #????????????? | | ?????????????????????# # #??##????????? | | ??????????????????????# # #?? ?????????? | | ??????????????????????#####+#### #? ??????????? | | ????????????????????????# #?# #? ??????????? | | ????????????????????????# #?# # ???????????? | | ???????????##############! #?# # ???????????? | | ???????????# !+% #?# +????????????? | | ???????????# ! ! *#@ #?# #????????????? | | ???????????# # #?# #????????????? | | ???????????# """ """ # ### ##########???? | | ???????????# """ """ # """""??? | | ???????????# """ "" + g w "" F"??? | | ###????????# """ """ # "" "" ?? | | #????????# """ """ # | | #????????# """ """ # ####+##### [ | | ########## """ """ # # #???????????? | | / # #! #???????????? | | ## ####### # # #???????????? | | ## #?????############## # """ #???????????? | | #### #??????????????????# # """ #???????????? | | ####+###########????????# k# """ #???????????? | | ## # #????????# # #???????????? | | ## # #????????# # #???????????? | | ## # """#?######## # """ =#???????????? | | #! # """#?# # """ #???????????? | | # # R"#?# # """ #???????????? | | + #= """#?# # #???????????? | | # + = "" #?# [ # #???????????? | | # #= #?# ###+#######+####???????????? | | # # #?# # ! | ## #??????????????? | | ##########+###### # ! ## #??????????????? | | # | ## #??????????????? | +----------------------------------------------------+ Best States ------------- Heat Dissipation 108 Energy Generation 59 Energy Capacity 820 Matter Stores 300 Matter Capacity 300 Sight Range 22 Robot Scan Range 18 Terrain Scan Density 210 Armor Coverage 300 Core Shielding 30 Evasion (%) 75 Targeting Accuracy 16 Melee Accuracy 6 Launcher Accuracy 20 Target Analysis 12 Recoil Reduction 5 Offensive Hacking 22 Defensive Hacking 20 Item Schematics ----------------- Imp. Hacking Suite | -8/Storage | Hacked Robot Schematics ------------------ None Fabricated ------------ Imp. Hacking Suite | x1 | -7/Factory Imp. Hacking Suite | x1 | -6/Factory Repaired ---------- Imp. Treads | 37% | -9/Materials Imp. Cesium-ion Thruster | 75% | -7/Factory Bore Cannon | 47% | -6/Extension Neutrino Core | 61% | -6/Extension Impact Mace | 65% | -6/Extension Bore Cannon | 69% | -6/Extension Imp. Cesium-ion Thruster | 33% | -6/Extension VTOL Module | 52% | -6/Extension Impact Mace | 82% | -6/Extension Alien Tech Used ----------------- None Achievements -------------- None Challenges ------------ None Game ------ Seed ResetJammingNanovents Manual? 0 Play Time 02:49:52 Cumulative 98.6 hours Start 2025.10.05 @ 19:12:00 End 2025.10.06 @ 06:26:12 Sessions 1 Manual Loads 0 Difficulty Rogue Special Mode None Game No. 75 Rogue 75 Adventurer 0 Explorer 0 Win Type - Total 0 Types 0/0/0/0/0/0/0/0/0/0 Lore% 22 Gallery% 51 Achievement% 41 Wizard Run 0 Options --------- Layout 0 ASCII 0 Keyboard 0 Movement Mouse Keybinds 0 Fullscreen 1 Font 12/Smallcaps Map View 38x28 Zoom Use 96% Tactical HUD 1 Map Filters NONE Filters NONE Steam SD RUN: d8ea1c0c-807b-4d64-88c9-b5ab8f8af81c